Cogmind - Beta 17.1 @@@ ROGUE MODE // 2026.09.09 @ 04:25:35 Player: cel Result: Destroyed by Y-45 Defender with Heavy Assault Rifle Performance ------------- Evolutions (1) 500 Regions Visited (2) 400 Robots Destroyed (17) 85 Value Destroyed (487) 487 Prototype IDs (0) 0 Alien Tech Used (0) 0 Bonus (0) 0 TOTAL SCORE: 1472 Bonus ------- None Cogmind --------- Core Integrity 0/400 Matter 300/300 Energy 100/100 System Corruption 0% Temperature Cool (9) Movement Core (50) Location -9/Materials Parts ------- > --- POWER (1) -------- (None) > --- PROPULSION (4) --- (None) > --- UTILITY (2) ------ Visual Processing Unit > --- WEAPON (2) ------- (None) > --- INVENTORY (5) ---- Ion Engine Ion Engine Ion Engine Ion Engine Improved Heat Sink Peak State ------------ > --- POWER ------------ Ion Engine > --- PROPULSION ------- Aluminum Leg Aluminum Leg Aluminum Leg Aluminum Leg > --- UTILITY ---------- Small Storage Unit Visual Processing Unit > --- WEAPON ----------- Medium Laser Assault Rifle > --- INVENTORY -------- Ion Engine Ion Engine Ion Engine Ion Engine Tractor Beam Medium Laser Light Assault Rifle [Rating: 10] Favorites ----------- Power Ion Engine Engine Ion Engine Propulsion Aluminum Leg Leg Aluminum Leg Utility Small Storage Unit Device Tractor Beam Storage Small Storage Unit Processor Visual Processing Unit Weapon Medium Laser Energy Gun Medium Laser Ballistic Gun Assault Rifle Build | -11 -10 -9 ------- Run | Yrd Mat Mat Slots Evolved 2 | . . 2 Power . | . . . Propulsion 2 | . . 2 Utility . | . . . Weapon . | . . . Parts Attached 18 | 6 1 11 Power 4 | 1 . 3 Engine 4 | 1 . 3 Core . | . . . Reactor . | . . . Propulsion 7 | 2 . 5 Treads . | . . . Leg 7 | 2 . 5 Wheel . | . . . Hover . | . . . Flight . | . . . Utility 3 | 1 1 1 Device 1 | . 1 . Storage 1 | 1 . . Processor 1 | . . 1 Hackware . | . . . Protection . | . . . Artifact . | . . . Weapon 4 | 2 . 2 Energy Gun 2 | 2 . . Energy Cannon . | . . . Ballistic Gun 2 | . . 2 Ballistic Cannon . | . . . Launcher . | . . . Special Weapon . | . . . Impact Weapon . | . . . Slashing Weapon . | . . . Piercing Weapon . | . . . Special Melee Weapon . | . . . Unidentified Prototypes . | . . . Parts Lost 12 | . . 12 Power 2 | . . 2 Propulsion 6 | . . 6 Utility 1 | . . 1 Weapon 3 | . . 3 Highest Loss Streak 8 | . . 8 To Critical Strikes . | . . . Average Backups 5 | 1 5 6 Power 4 | . 3 4 Propulsion . | . . . Utility . | . . . Weapon 1 | . . 1 Tool/Special . | . . . Unused Backups 5 | . 1 4 Power 3 | . . 3 Propulsion . | . . . Utility 1 | . . 1 Weapon 1 | . 1 . Tool/Special . | . . . Average Slot Usage (%) 87 | . 91 86 Engine 11 | . 14 10 Leg 32 | . 28 34 Device 4 | . 5 3 Storage 11 | . 14 11 Processor 5 | . . 7 Energy Gun 15 | . 28 11 Ballistic Gun 5 | . . 7 Peak Build Rating 10 | 6 7 10 Average Rating 7 | 3 6 8 On Entrance 4 | . 6 7 Avg Prop Armor Cover (%) 16 | 16 . . Naked Turns . | . . . Heaviest Build 15 | 14 15 15 Greatest Support 40 | 20 20 40 Greatest Overweight (x) 2 | 2 . 1 Average Overweight (x) . | . . . Largest Inventory Capacity 8 | 8 8 8 Average Capacity 7 | 6 8 7 Most Carried 8 | 4 8 8 Average Carried 5 | 1 5 6 Final Capacity 8 | 8 8 5 Final Carried 8 | 1 8 5 Class Distribution -------------------- 85% | Mutant 14% | Scavenger-Mutant Dominant Class ---------------- Mutant | -10/Materials Mutant | -9/Materials Resources | -11 -10 -9 ----------- Run | Yrd Mat Mat Matter Collected 468 | 242 28 198 Remotely . | . . . Salvage Created 574 | . 40 534 Parts 26 | . 3 23 Haulers Intercepted . | . . . Recyclers Shooed 2 | . . 2 Parts Field Recycled . | . . . Retrieved Matter . | . . . Parts Self-Destructed . | . . . Prevented . | . . . Parts Restored . | . . . Kills | -11 -10 -9 ------- Run | Yrd Mat Mat Combat Hostiles Destroyed 14 | . 1 13 Guns 13 | . 1 12 Classes Destroyed 6 | . 1 5 Worker 1 | . . 1 Watcher 2 | . . 2 Swarmer 3 | . . 3 Grunt 9 | . 1 8 Duelist 1 | . . 1 Sentry 1 | . . 1 Best Kill Streak 4 | . 1 4 Combat Bots Only 3 | . 1 3 Max Kills in Single Turn 2 | . 1 2 Gunslinging 1 | . . 1 Exploded . | . . . Melee . | . . . Uniques/NPCs Destroyed . | . . . Combat | -11 -10 -9 -------- Run | Yrd Mat Mat Hostile Shots Fired 181 | . 8 173 Missed 51 | . 1 50 Hits 130 | . 7 123 Melee 6 | . . 6 Projectile 124 | . 7 117 Critical Strikes 3 | . . 3 Damage Taken 1732 | . 76 1656 Core 419 | . 12 407 Absorbed by Shields . | . . . Core Remaining (%) 97 | 100 95 . Volleys Fired 78 | . 6 72 Largest 2 | . 2 2 Hottest 100 | . 100 100 Shots Fired 143 | . 12 131 Gun 143 | . 12 131 Cannon . | . . . Launcher . | . . . Special . | . . . Kinetic 59 | . . 59 Thermal 84 | . 12 72 Explosive . | . . . Electromagnetic . | . . . Robot Hit Streak 12 | . 1 12 Robot Miss Streak 7 | . 7 5 Penetration Max . | . . . Secondary Targets 1 | . . 1 Max Gunslinging Chain 1 | . . 1 Shots Hit Robots 84 | . 2 82 Core Hits 37 | . 2 35 Critical Kills . | . . . Critical Parts Destroyed . | . . . Critical Strikes 10 | . 1 9 Burn 10 | . 1 9 Melee Attacks . | . . . Impact . | . . . Slashing . | . . . Piercing . | . . . Sneak Attacks . | . . . Combat Hostiles . | . . . Follow-up Attacks . | . . . Damage Inflicted 1117 | . 24 1093 Guns 1043 | . 24 1019 Cannons . | . . . Explosions . | . . . Melee . | . . . Ramming 74 | . . 74 Kinetic 444 | . . 444 Thermal 599 | . 24 575 Explosive . | . . . Electromagnetic . | . . . Impact . | . . . Slashing . | . . . Piercing . | . . . Highest Corruption . | . . . Average Corruption . | . . . Corruption Purged . | . . . Corruption Blocked . | . . . Overload Shots . | . . . Overflow Damage . | . . . Projectiles . | . . . Explosions . | . . . Melee . | . . . Knockbacks . | . . . Impact . | . . . Kinetic . | . . . Secondary . | . . . Self-Inflicted Damage . | . . . Shots . | . . . Rammed . | . . . Targets Rammed 34 | . . 34 Kicked 34 | . . 34 Crushed . | . . . Highest Temperature 322 | . 123 322 Average Temperature 72 | . 50 76 Received Heat Transfer 780 | . 42 738 Effects 2 | . . 2 Interference 2 | . . 2 Siege Activations . | . . . Martial Activations . | . . . Shielding Activations . | . . . Robots Disrupted . | . . . Combat Hostiles . | . . . Robots Corrupted . | . . . Combat Hostiles . | . . . Parts Fried . | . . . Impact Corruptions . | . . . Robots Melted 1 | . . 1 Combat Hostiles 1 | . . 1 Parts Melted 6 | . 1 5 Heat Transferred 2516 | . 148 2368 Parts Sabotaged . | . . . Parts Stolen . | . . . Parts Stripped . | . . . Power Chain Reactions . | . . . Alert | -11 -10 -9 ------- Run | Yrd Mat Mat Maximum Alert Level . | . . . Low Security (%) 100 | 100 100 100 Level 1 . | . . . Level 2 . | . . . Level 3 . | . . . Level 4 . | . . . Level 5 . | . . . High Security . | . . . Max Security . | . . . Peak Influence 161 | . 30 161 Initial . | . . . Average 47 | . 4 64 Influence Increases 390 | . 30 360 Destroy 0b10 Robot/C 280 | . 20 260 Destroy 0b10 Robot/NC 15 | . . 15 Destroy Leader 64 | . 10 54 Destroy Structure 1 | . . 1 Lose Combat Pursuer 30 | . . 30 Influence Decreases 380 | . 30 350 Time Decay 260 | . 30 230 Lost Part 120 | . . 120 Squads Dispatched 1 | . 1 . Investigation . | . . . Extermination . | . . . Reinforcement 1 | . 1 . Assault . | . . . Garrison . | . . . Intercept . | . . . Searches Triggered . | . . . Construction Impeded . | . . . Haulers Reinforced . | . . . Active Scanning Responses . | . . . Cargo Convoy Interrupts . | . . . Stealth | -11 -10 -9 --------- Run | Yrd Mat Mat Distress Signals 3 | . . 3 Communications Jammed . | . . . Distress Signals . | . . . Times Spotted 27 | . 2 25 Peak Tracking Total 4 | . 1 4 Tactical Retreats 2 | . . 2 Traps | -11 -10 -9 ------- Run | Yrd Mat Mat Traps Triggered . | . . . Indirectly . | . . . Trap Hack Attempts . | . . . Triggered . | . . . Disarmed . | . . . Reprogrammed . | . . . Reused . | . . . Traps Extracted . | . . . Installed . | . . . Triggered . | . . . Machines | -11 -10 -9 ---------- Run | Yrd Mat Mat Machines Disabled . | . . . Max in Single Turn . | . . . Machines Repaired . | . . . Machines Dismantled . | . . . Machines Sabotaged . | . . . Overloaded Fab Kills . | . . . Hacking | -11 -10 -9 --------- Run | Yrd Mat Mat Machines Accessed 1 | . . 1 Terminals 1 | . . 1 Fabricators . | . . . Repair Stations . | . . . Recycling Units . | . . . Scanalyzers . | . . . Garrison Access . | . . . Total Hacks 1 | . . 1 Successful 1 | . . 1 Failed . | . . . Catastrophic . | . . . Database Lockouts . | . . . Manual . | . . . Terminals 1 | . . 1 Fabricators . | . . . Repair Stations . | . . . Recycling Units . | . . . Scanalyzers . | . . . Garrison Access . | . . . Terminal Hacks 1 | . . 1 Record 1 | . . 1 Fabricator Hacks . | . . . Repair Station Hacks . | . . . Recycling Unit Hacks . | . . . Scanalyzer . | . . . Garrison Access Hacks . | . . . Unauthorized Hacks . | . . . Terminals . | . . . Fabricators . | . . . Repair Stations . | . . . Recycling Units . | . . . Scanalyzers . | . . . Garrison Access . | . . . Data Cores Recovered . | . . . Used . | . . . Hacking Detections 1 | . . 1 Full Trace Events . | . . . Feedback Events . | . . . Feedback Blocked . | . . . Robot Schematics Acquired . | . . . Robots Built . | . . . Authchips . | . . . Time . | . . . Total Robot Build Rating . | . . . Part Schematics Acquired . | . . . Parts Built . | . . . Authchips . | . . . Time . | . . . Total Part Build Rating . | . . . Part Studies Acquired . | . . . Parts Repaired . | . . . Time . | . . . Parts Recycled . | . . . Recycled Matter . | . . . Retrieved Matter . | . . . Retrieved Components . | . . . Parts Scanalyzed . | . . . Part Schematics Acquired . | . . . Parts Damaged . | . . . Bothacking | -11 -10 -9 ------------ Run | Yrd Mat Mat Used RIF Installer . | . . . Robots Hacked . | . . . Non-combat . | . . . Combat . | . . . Robot Hacks Applied . | . . . Relay Couplers Released . | . . . Fabnet Peak Effective % . | . . . Robots Rewired . | . . . Allies Hacked . | . . . Hacks Repelled . | . . . Allies | -11 -10 -9 -------- Run | Yrd Mat Mat Total Allies . | . . . Largest Group . | . . . Highest-Rated Group . | . . . Highest-Rated Ally . | . . . Total Orders . | . . . Ally Attacks . | . . . Total Damage . | . . . Kills . | . . . Allies Corrupted . | . . . Allies Melted . | . . . Intel | -11 -10 -9 ------- Run | Yrd Mat Mat Active Infowar (turns) 409 | . . 409 Optics 409 | . . 409 Robot Analysis Total . | . . . Derelict Logs Recovered . | . . . Drone Launches . | . . . Drone Recoveries . | . . . Exploration | -11 -10 -9 ------------- Run | Yrd Mat Mat Turns Passed 824 | 51 181 592 Spaces Moved 417 | 35 128 254 Core 35 | 16 . 19 Treads . | . . . Legs 382 | 19 128 235 Wheels . | . . . Hover . | . . . Flight . | . . . Fastest Speed 50 | 50 120 100 Average Speed 118 | 110 120 118 Slowest Speed 150 | 150 120 120 Overloaded Moves . | . . . Propulsion Burnouts . | . . . Robots Hopped . | . . . Potential Cave-ins . | . . . Cave-ins Triggered . | . . . Exploration Rate (%) 21 | 4 32 27 Regions Visited 2 Branch Regions . Pre-discovered Areas . | . . . Known Exits Taken . | . . . Unknown Exits Taken 2 | 1 1 . Scrap Searched . | . . . Spaces Dug . | . . . Terrain Destroyed . | . . . Melee . | . . . Projectile . | . . . AOE . | . . . Terrain Rammed . | . . . Walls Destroyed . | . . . Machines Disabled . | . . . Actions | -11 -10 -9 --------- Run | Yrd Mat Mat Total 601 | 47 144 410 Wait 28 | . . 28 Move 415 | 34 127 254 Hop . | . . . Pick Up 22 | 7 9 6 Fast Attach 1 | . . 1 Attach 12 | 6 1 5 Detach . | . . . Swap 5 | . . 5 Drop 6 | . 1 5 Fire 78 | . 6 72 Melee . | . . . Ram . | . . . Kick 34 | . . 34 Crush . | . . . Escape Stasis . | . . . Rewire . | . . . Trap . | . . . Miscellaneous . | . . . Route ------- -11/Scrapyard -10/Materials -9/Materials History --------- Turn | Location | Event 2 | -11/Scrapyard | Met Revision 17 30 | -11/Scrapyard | Discovered new exit (range 15) 52 | -11/Scrapyard | Entered Materials 181 | -10/Materials | Discovered new exit (range 3) 233 | -10/Materials | Entered another Materials area 233 | -9/Materials | Evolved 2 slots: Propulsion x2 312 | -9/Materials | Build established: Mutant 748 | -9/Materials | Core integrity fell below 50% 787 | -9/Materials | Lost 8 parts (1p4n3w) 811 | -9/Materials | Core integrity fell below 20% 825 | -9/Materials | Destroyed by Y-45 Defender with Heavy Assault Rifle Last Messages --------------- G-34 Mercenary destroyed. R-06 Scavenger collects Aluminum Leg. Kicked Y-45 Defender. Kicked Y-45 Defender out of the way. Kicked G-34 Mercenary out of the way. Kicked Y-45 Defender. Critical hit (Burn: +37). Kicked Y-45 Defender. Kicked Y-45 Defender out of the way. Kicked Y-45 Defender. Kicked Y-45 Defender out of the way. Kicked Y-45 Defender. Ion Engine destroyed. Kicked Y-45 Defender. Critical hit (Burn: +37). Kicked Y-45 Defender out of the way. Kicked Y-45 Defender. Sml. Storage Unit destroyed. Kicked Y-45 Defender. Imp. Aluminum Leg destroyed. Map ----- +----------------------------------------------------+ | | | | | | | | | | | | | | | | | | | | | | | | | | | | | ?????????????????????????????????????????????????? | | ?????????????????????????????????????????????????? | | ?????????????????????????????????????????????????? | | ?????????????????????????????????????????????????? | | ?????????????????????????????????????????????????? | | ???????????????????????########??????????????????? | | ???????????????????????# """ #??????????????????? | | ???????????????????????# "Y" #??????????????????? | | ???????????????????????# " " #??????????????????? | | ???????????????????? ??#%%%g #??????????????????? | | ???????????????????? ??#%%%%% #??????????????????? | | ?????????????????###+###%@Y%%%#?????????? ?????? | | ?????????????????# ###/########## ????? | | ?????????????????# #??????? | | ?????????????????# #??????? | | ?????????????????# #??????? | | ?????????????????# ###+########## #??????? | | ?????????????????## ## #??????????##??????? | | ??????????????????# ## #??????????????????? | | ??????????????????# ## #??????????????????? | | ??????????????????+ ## #??????????????????? | | ??????????????????# ## #??????????????????? | | ??????????????????# ## #??????????????????? | | ??????????????????# ####/####??????????????????? | | ?????????????##???# #??# #?????????????????????? | | ?????????????? ?# #??# #?????????????????????? | | ??????????????""" #% #??# #???##????????????????? | | ????????????????" + #### ### !##???????????????? | | ??????????????????# !#???????????????? | | ??????????????????# !#???????????????? | | ??????????????????# % !#???????????????? | | ??????????????????# ###+#### !#???????????????? | | ??????????????????# # #? !##???????????????? | | ??????????????????# # #??##????????????????? | | ??????????????????# # ] #?????????????######## | | ??????????????????# # """ #?????????????# | +----------------------------------------------------+ Best States ------------- Heat Dissipation 28 Energy Generation 10 Energy Capacity 250 Matter Stores 300 Matter Capacity 300 Sight Range 18 Terrain Scan Density 10 Evasion (%) 55 Item Schematics ----------------- None Robot Schematics ------------------ None Fabricated ------------ Nothing Repaired ---------- Nothing Studied --------- None Alien Tech Used ----------------- None Achievements -------------- None Challenges ------------ None Game ------ Seed HypercooledLaunchWeb Manual? 0 Play Time 00:15:01 Cumulative 20.2 hours Start 2026.09.09 @ 04:13:46 End 2026.09.09 @ 04:25:35 Sessions 1 Manual Loads 0 Difficulty Rogue Special Mode None Game No. 28 Rogue 28 Adventurer 0 Explorer 0 Win Type - Total 0 Types 0/0/0/0/0/0/0/0/0/0 Lore% 22 Gallery% 18 Achievement% 15 Wizard Run 0 Options --------- Layout 1 ASCII 0 Keyboard 0 Movement Mouse Keybinds 0 Fullscreen 1 Font 16/SmallcapsGlow Map View 50x40 Zoom Use 0% Tactical HUD 0 Map Filters NONE Filters NONE Steam SD RUN: 7751376d-b69a-47fe-b4e1-9f5f14d68c22